[Event "*** Titled Tuesday Blitz"]
[Site "Chess.com"]
[Date "2021.04.06"]
[Round "4"]
[White "kingofthenil"]
[Black "Pliukha_Mikhail"]
[Result "0-1"]
[WhiteElo "2628"]
[BlackElo "2503"]
[TimeControl "180+1"]
[EndTime "10:39:32 PDT"]
[Termination "Pliukha_Mikhail won by resignation"]

1. e4 {[%clk 0:02:52.6]} 1... c6 {[%clk 0:02:59.9]} 2. Ne2 {[%clk 0:02:15]} 2...
d5 {[%clk 0:03:00.8]} 3. Ng3 {[%clk 0:02:15.6]} 3... dxe4 {[%clk 0:03:01.3]} 4.
Nxe4 {[%clk 0:02:15.6]} 4... Nf6 {[%clk 0:03:02.2]} 5. Nbc3 {[%clk 0:02:15.2]}
5... Nxe4 {[%clk 0:03:02.1]} 6. Nxe4 {[%clk 0:02:16.1]} 6... Bf5 {[%clk
0:03:02.9]} 7. Ng3 {[%clk 0:02:14.7]} 7... Bg6 {[%clk 0:03:03.3]} 8. h4 {[%clk
0:02:15.5]} 8... h6 {[%clk 0:03:02.7]} 9. d4 {[%clk 0:02:09.6]} 9... e5 {[%clk
0:03:01.4]} 10. dxe5 {[%clk 0:02:03]} 10... Qa5+ {[%clk 0:03:01.3]} 11. Bd2
{[%clk 0:01:53.4]} 11... Qxe5+ {[%clk 0:03:01.3]} 12. Be2 {[%clk 0:01:49.9]}
12... Bc5 {[%clk 0:03:01.3]} 13. h5 {[%clk 0:01:47.9]} 13... Bh7 {[%clk
0:03:01.4]} 14. Bc3 {[%clk 0:01:46.9]} 14... Qf4 {[%clk 0:02:55.2]} 15. Bf3
{[%clk 0:01:33.6]} 15... O-O {[%clk 0:02:51.7]} 16. Ne2 {[%clk 0:01:33.7]} 16...
Qf5 {[%clk 0:02:38.4]} 17. O-O {[%clk 0:01:30.8]} 17... Na6 {[%clk 0:02:33.9]}
18. Ng3 {[%clk 0:01:20.4]} 18... Qf4 {[%clk 0:02:33.7]} 19. Ne2 {[%clk
0:01:19.4]} 19... Qg5 {[%clk 0:02:33.8]} 20. Bd2 {[%clk 0:01:09]} 20... Qh4
{[%clk 0:02:31.3]} 21. Nc1 {[%clk 0:00:54.2]} 21... Rad8 {[%clk 0:02:28.8]} 22.
Nd3 {[%clk 0:00:54.1]} 22... Bxd3 {[%clk 0:02:26.7]} 23. cxd3 {[%clk 0:00:55]}
23... Rxd3 {[%clk 0:02:27.2]} 24. Qe2 {[%clk 0:00:53.4]} 24... Rfd8 {[%clk
0:02:25.9]} 25. Bc3 {[%clk 0:00:52.2]} 25... R3d7 {[%clk 0:02:19.8]} 26. a3
{[%clk 0:00:25.9]} 26... Nc7 {[%clk 0:02:18.7]} 27. Rae1 {[%clk 0:00:25.6]}
27... Re7 {[%clk 0:02:14.7]} 28. Qc2 {[%clk 0:00:22.2]} 28... Rde8 {[%clk
0:02:14.1]} 29. Rxe7 {[%clk 0:00:20.4]} 29... Rxe7 {[%clk 0:02:14.9]} 30. Bxg7
{[%clk 0:00:12.5]} 30... Bd6 {[%clk 0:02:15.3]} 31. g3 {[%clk 0:00:07]} 31...
Bxg3 {[%clk 0:02:13.2]} 32. fxg3 {[%clk 0:00:07.9]} 32... Qxg3+ {[%clk
0:02:13.7]} 33. Qg2 {[%clk 0:00:07.8]} 33... Qxg2+ {[%clk 0:02:13.7]} 34. Kxg2
{[%clk 0:00:08.7]} 34... Kxg7 {[%clk 0:02:14.3]} 35. Rd1 {[%clk 0:00:09.6]}
35... Ne6 {[%clk 0:02:13.5]} 36. b4 {[%clk 0:00:10]} 36... Ng5 {[%clk
0:02:11.1]} 37. Rd8 {[%clk 0:00:07.6]} 37... Re3 {[%clk 0:02:09]} 38. Bg4 {[%clk
0:00:05.1]} 38... Rxa3 {[%clk 0:02:04]} 39. Rd7 {[%clk 0:00:04.5]} 39... b6
{[%clk 0:02:04.6]} 40. Rc7 {[%clk 0:00:03.2]} 40... Ra2+ {[%clk 0:02:05.1]} 41.
Kf1 {[%clk 0:00:02.8]} 41... Rb2 {[%clk 0:01:55.7]} 42. Rxa7 {[%clk 0:00:02.7]}
42... Rb1+ {[%clk 0:01:56.1]} 43. Ke2 {[%clk 0:00:02.4]} 43... Rxb4 {[%clk
0:01:56.8]} 44. Bd7 {[%clk 0:00:02.2]} 44... c5 {[%clk 0:01:55.1]} 45. Kd3
{[%clk 0:00:01.2]} 45... Rb3+ {[%clk 0:01:53.8]} 46. Kc2 {[%clk 0:00:01.4]}
46... c4 {[%clk 0:01:54.5]} 47. Rb7 {[%clk 0:00:01.9]} 47... Kf6 {[%clk
0:01:53.3]} 48. Bc6 {[%clk 0:00:02.1]} 48... Ne6 {[%clk 0:01:48.8]} 49. Bd5
{[%clk 0:00:02.1]} 49... b5 {[%clk 0:01:48]} 50. Rb6 {[%clk 0:00:01.1]} 50...
Ke5 {[%clk 0:01:47.9]} 51. Bxe6 {[%clk 0:00:01.6]} 51... fxe6 {[%clk 0:01:48.6]}
52. Rb7 {[%clk 0:00:02]} 52... b4 {[%clk 0:01:48.7]} 53. Rh7 {[%clk 0:00:02.1]}
53... Rh3 {[%clk 0:01:47.9]} 54. Rxh6 {[%clk 0:00:03]} 54... Rh2+ {[%clk
0:01:48.3]} 55. Kc1 {[%clk 0:00:03.1]} 55... c3 {[%clk 0:01:49]} 56. Rh8 {[%clk
0:00:03.1]} 56... b3 {[%clk 0:01:49.6]} 57. Kd1 {[%clk 0:00:04]} 57... c2+
{[%clk 0:01:49.2]} 58. Kc1 {[%clk 0:00:04.5]} 58... Rh1+ {[%clk 0:01:49.2]} 59.
Kb2 {[%clk 0:00:05.2]} 59... c1=Q+ {[%clk 0:01:49.6]} 60. Kxb3 {[%clk
0:00:06.1]} 0-1

[Event "*** Titled Tuesday Blitz"]
[Site "Chess.com"]
[Date "2021.04.06"]
[Round "4"]
[White "serena-maria"]
[Black "mary-sanna"]
[Result "1-0"]
[WhiteElo "2388"]
[BlackElo "2112"]
[TimeControl "180+1"]
[EndTime "10:39:35 PDT"]
[Termination "serena-maria won by checkmate"]

1. Nf3 {[%clk 0:02:32.2]} 1... d5 {[%clk 0:02:59.4]} 2. g3 {[%clk 0:02:32.2]}
2... Nf6 {[%clk 0:02:58.6]} 3. Bg2 {[%clk 0:02:32.4]} 3... e6 {[%clk 0:02:56.2]}
4. O-O {[%clk 0:02:31]} 4... Bd6 {[%clk 0:02:54.2]} 5. d4 {[%clk 0:02:31]} 5...
O-O {[%clk 0:02:53.8]} 6. c4 {[%clk 0:02:31.5]} 6... c6 {[%clk 0:02:53.3]} 7.
Nc3 {[%clk 0:02:31.9]} 7... Nbd7 {[%clk 0:02:49.5]} 8. Nd2 {[%clk 0:02:32.3]}
8... a6 {[%clk 0:02:40.5]} 9. e4 {[%clk 0:02:32.7]} 9... dxe4 {[%clk 0:02:38.4]}
10. Ndxe4 {[%clk 0:02:33.1]} 10... Be7 {[%clk 0:02:26.1]} 11. h3 {[%clk
0:02:28.2]} 11... Qc7 {[%clk 0:02:21.3]} 12. Bf4 {[%clk 0:02:26.7]} 12... Qa5
{[%clk 0:02:07.9]} 13. a3 {[%clk 0:02:18.6]} 13... Nxe4 {[%clk 0:01:53.9]} 14.
Nxe4 {[%clk 0:02:13.8]} 14... b5 {[%clk 0:01:22.7]} 15. b3 {[%clk 0:01:57.3]}
15... bxc4 {[%clk 0:01:17.5]} 16. bxc4 {[%clk 0:01:57.1]} 16... c5 {[%clk
0:01:16.6]} 17. Bd6 {[%clk 0:01:43.6]} 17... Bxd6 {[%clk 0:01:11]} 18. Nxd6
{[%clk 0:01:43.1]} 18... Ra7 {[%clk 0:01:09.6]} 19. Qb3 {[%clk 0:01:25.7]} 19...
cxd4 {[%clk 0:01:06.9]} 20. Rfd1 {[%clk 0:01:20.4]} 20... Nc5 {[%clk 0:01:04.8]}
21. Qb8 {[%clk 0:01:16.5]} 21... Qc7 {[%clk 0:00:50.1]} 22. Qxc7 {[%clk
0:01:15.2]} 22... Rxc7 {[%clk 0:00:51]} 23. Rab1 {[%clk 0:01:01.8]} 23... e5
{[%clk 0:00:48.3]} 24. Nxc8 {[%clk 0:00:58.7]} 24... Rfxc8 {[%clk 0:00:47.1]}
25. Bd5 {[%clk 0:00:59.4]} 25... g6 {[%clk 0:00:44.3]} 26. Rb6 {[%clk
0:00:56.4]} 26... Kg7 {[%clk 0:00:42.5]} 27. Re1 {[%clk 0:00:55.6]} 27... f6
{[%clk 0:00:41.4]} 28. Kf1 {[%clk 0:00:52.8]} 28... d3 {[%clk 0:00:35.2]} 29.
Rd1 {[%clk 0:00:48.3]} 29... e4 {[%clk 0:00:34]} 30. Ke1 {[%clk 0:00:48.4]}
30... f5 {[%clk 0:00:28.9]} 31. Kd2 {[%clk 0:00:48.4]} 31... h6 {[%clk
0:00:24.1]} 32. h4 {[%clk 0:00:48.3]} 32... g5 {[%clk 0:00:24]} 33. h5 {[%clk
0:00:48.1]} 33... Rf8 {[%clk 0:00:21.6]} 34. Rg6+ {[%clk 0:00:44.9]} 34... Kh7
{[%clk 0:00:21]} 35. Rb1 {[%clk 0:00:45.6]} 35... f4 {[%clk 0:00:18.4]} 36. gxf4
{[%clk 0:00:41.2]} 36... gxf4 {[%clk 0:00:19.3]} 37. Rbb6 {[%clk 0:00:40.5]}
37... e3+ {[%clk 0:00:14]} 38. fxe3 {[%clk 0:00:40.2]} 38... fxe3+ {[%clk
0:00:14.9]} 39. Kxe3 {[%clk 0:00:40.7]} 39... Re7+ {[%clk 0:00:15.7]} 40. Kd4
{[%clk 0:00:41.2]} 40... Nd7 {[%clk 0:00:13.1]} 41. Rxh6+ {[%clk 0:00:41.5]}
41... Kg7 {[%clk 0:00:12.9]} 42. Rbg6# {[%clk 0:00:41.9]} 1-0

[Event "*** Titled Tuesday Blitz"]
[Site "Chess.com"]
[Date "2021.04.06"]
[Round "4"]
[White "anpospan"]
[Black "rududuyk"]
[Result "1-0"]
[WhiteElo "2404"]
[BlackElo "2162"]
[TimeControl "180+1"]
[EndTime "10:39:38 PDT"]
[Termination "anpospan won on time"]

1. d4 {[%clk 0:03:00.9]} 1... e6 {[%clk 0:03:00.2]} 2. c4 {[%clk 0:03:00.6]}
2... f5 {[%clk 0:03:00.3]} 3. Nc3 {[%clk 0:03:00.3]} 3... Nf6 {[%clk 0:03:00.9]}
4. g3 {[%clk 0:03:00.5]} 4... Be7 {[%clk 0:03:00.4]} 5. Bg2 {[%clk 0:03:00.6]}
5... d6 {[%clk 0:03:00.9]} 6. Nf3 {[%clk 0:02:59.1]} 6... O-O {[%clk 0:03:00.9]}
7. O-O {[%clk 0:02:59]} 7... Ne4 {[%clk 0:03:01.3]} 8. Nxe4 {[%clk 0:02:55.9]}
8... fxe4 {[%clk 0:03:02.2]} 9. Nd2 {[%clk 0:02:55.5]} 9... d5 {[%clk
0:02:57.5]} 10. Qb3 {[%clk 0:02:54.7]} 10... Nc6 {[%clk 0:02:54.4]} 11. e3
{[%clk 0:02:44.3]} 11... Kh8 {[%clk 0:02:54.1]} 12. a3 {[%clk 0:02:39.8]} 12...
Qe8 {[%clk 0:02:13.9]} 13. cxd5 {[%clk 0:02:31.4]} 13... exd5 {[%clk 0:01:59.6]}
14. Qxd5 {[%clk 0:02:30.6]} 14... Bf6 {[%clk 0:01:53.9]} 15. Nxe4 {[%clk
0:02:18.6]} 15... Bd8 {[%clk 0:01:43.8]} 16. Nc5 {[%clk 0:02:10.1]} 16... Ne7
{[%clk 0:01:37.2]} 17. Qe4 {[%clk 0:01:56.7]} 17... c6 {[%clk 0:01:29]} 18. Ne6
{[%clk 0:01:54]} 18... Rf6 {[%clk 0:01:27.2]} 19. Nxd8 {[%clk 0:01:51.2]} 19...
Qxd8 {[%clk 0:01:28.1]} 20. Bd2 {[%clk 0:01:46.5]} 20... Bf5 {[%clk 0:01:25.8]}
21. Qh4 {[%clk 0:01:42.2]} 21... Ng6 {[%clk 0:01:24.3]} 22. Qg5 {[%clk
0:01:33.2]} 22... Qd7 {[%clk 0:01:14.3]} 23. e4 {[%clk 0:01:10.7]} 23... Bh3
{[%clk 0:01:00.3]} 24. e5 {[%clk 0:01:00]} 24... Rf7 {[%clk 0:00:39.5]} 25. Qe3
{[%clk 0:00:58.5]} 25... Bxg2 {[%clk 0:00:31.2]} 26. Kxg2 {[%clk 0:00:58.1]}
26... Qd5+ {[%clk 0:00:32.1]} 27. f3 {[%clk 0:00:55.5]} 27... Raf8 {[%clk
0:00:30.4]} 28. Bc3 {[%clk 0:00:53.2]} 28... Ne7 {[%clk 0:00:19.8]} 29. e6
{[%clk 0:00:51.4]} 29... Rf6 {[%clk 0:00:16.8]} 30. Rae1 {[%clk 0:00:51.1]}
30... Nf5 {[%clk 0:00:16.2]} 31. Qe4 {[%clk 0:00:48]} 31... Qb3 {[%clk
0:00:12.9]} 32. e7 {[%clk 0:00:42.8]} 32... Re8 {[%clk 0:00:12.8]} 33. d5 {[%clk
0:00:42.4]} 33... Rf7 {[%clk 0:00:10.2]} 34. dxc6 {[%clk 0:00:35.5]} 34... Rexe7
{[%clk 0:00:02.5]} 35. c7 {[%clk 0:00:28.2]} 1-0

[Event "*** Titled Tuesday Blitz"]
[Site "Chess.com"]
[Date "2021.04.06"]
[Round "4"]
[White "Das_Virus_2020"]
[Black "BeyondMadness"]
[Result "0-1"]
[WhiteElo "2446"]
[BlackElo "2282"]
[TimeControl "180+1"]
[EndTime "10:39:39 PDT"]
[Termination "BeyondMadness won on time"]

1. e4 {[%clk 0:03:00.9]} 1... c5 {[%clk 0:02:57.7]} 2. c3 {[%clk 0:02:59]} 2...
Nf6 {[%clk 0:02:57.1]} 3. e5 {[%clk 0:02:58.9]} 3... Nd5 {[%clk 0:02:56.7]} 4.
d4 {[%clk 0:02:58.9]} 4... cxd4 {[%clk 0:02:56.9]} 5. Nf3 {[%clk 0:02:58.8]}
5... e6 {[%clk 0:02:57]} 6. cxd4 {[%clk 0:02:58.7]} 6... d6 {[%clk 0:02:56.4]}
7. a3 {[%clk 0:02:58.5]} 7... Bd7 {[%clk 0:02:54.5]} 8. Bd3 {[%clk 0:02:58.1]}
8... Bc6 {[%clk 0:02:53.7]} 9. O-O {[%clk 0:02:57.4]} 9... Nd7 {[%clk
0:02:53.3]} 10. Re1 {[%clk 0:02:52.5]} 10... Rc8 {[%clk 0:02:50.6]} 11. Nbd2
{[%clk 0:02:36.5]} 11... dxe5 {[%clk 0:02:45.3]} 12. dxe5 {[%clk 0:02:29.9]}
12... Be7 {[%clk 0:02:36.8]} 13. Ne4 {[%clk 0:02:19.4]} 13... O-O {[%clk
0:02:30.7]} 14. Qe2 {[%clk 0:01:53]} 14... h6 {[%clk 0:01:59.2]} 15. Bd2 {[%clk
0:01:31.2]} 15... a6 {[%clk 0:01:33.2]} 16. b4 {[%clk 0:01:12.7]} 16... Qc7
{[%clk 0:01:28.7]} 17. Ng3 {[%clk 0:01:08.6]} 17... Rfd8 {[%clk 0:01:18.3]} 18.
Rac1 {[%clk 0:01:01.2]} 18... Nf8 {[%clk 0:01:11.5]} 19. Nh5 {[%clk 0:00:49.3]}
19... Qd7 {[%clk 0:01:01.9]} 20. Bb1 {[%clk 0:00:20.6]} 20... Bb5 {[%clk
0:00:52.8]} 21. Qe4 {[%clk 0:00:20.6]} 21... Rxc1 {[%clk 0:00:50.1]} 22. Rxc1
{[%clk 0:00:20.5]} 22... Ng6 {[%clk 0:00:31.9]} 23. Qg4 {[%clk 0:00:19.9]} 23...
Ndf4 {[%clk 0:00:13.5]} 24. Nxf4 {[%clk 0:00:16.4]} 24... Nxe5 {[%clk 0:00:09]}
25. Nxe5 {[%clk 0:00:11]} 25... Qxd2 {[%clk 0:00:07.5]} 0-1

[Event "*** Titled Tuesday Blitz"]
[Site "Chess.com"]
[Date "2021.04.06"]
[Round "4"]
[White "Sam_ChessMood"]
[Black "Gusarov91"]
[Result "1-0"]
[WhiteElo "2878"]
[BlackElo "2625"]
[TimeControl "180+1"]
[EndTime "10:39:40 PDT"]
[Termination "Sam_ChessMood won by resignation"]

1. d4 {[%clk 0:03:00.9]} 1... Nf6 {[%clk 0:02:59.4]} 2. c4 {[%clk 0:03:01.1]}
2... c6 {[%clk 0:02:58.7]} 3. Bf4 {[%clk 0:03:00]} 3... d5 {[%clk 0:02:58.8]} 4.
e3 {[%clk 0:03:00.6]} 4... Qb6 {[%clk 0:02:56.6]} 5. Qc1 {[%clk 0:02:58]} 5...
Bf5 {[%clk 0:02:54.3]} 6. Nc3 {[%clk 0:02:57.5]} 6... e6 {[%clk 0:02:54.4]} 7.
Nf3 {[%clk 0:02:55.8]} 7... Nbd7 {[%clk 0:02:53.5]} 8. h3 {[%clk 0:02:51.3]}
8... h6 {[%clk 0:02:53.3]} 9. Be2 {[%clk 0:02:50]} 9... Be7 {[%clk 0:02:53.1]}
10. O-O {[%clk 0:02:49.5]} 10... O-O {[%clk 0:02:53.2]} 11. c5 {[%clk
0:02:49.3]} 11... Qd8 {[%clk 0:02:51.8]} 12. b4 {[%clk 0:02:49.4]} 12... a6
{[%clk 0:02:52.3]} 13. a4 {[%clk 0:02:48.5]} 13... Ne4 {[%clk 0:02:52.9]} 14.
Qb2 {[%clk 0:02:40.4]} 14... Nxc3 {[%clk 0:02:48.8]} 15. Qxc3 {[%clk 0:02:40.5]}
15... Be4 {[%clk 0:02:48.8]} 16. Nd2 {[%clk 0:02:35.5]} 16... Bg6 {[%clk
0:02:47.2]} 17. b5 {[%clk 0:02:35.7]} 17... axb5 {[%clk 0:02:44.3]} 18. axb5
{[%clk 0:02:35.7]} 18... e5 {[%clk 0:02:38.4]} 19. Bxe5 {[%clk 0:02:33.5]} 19...
Nxe5 {[%clk 0:02:38.3]} 20. dxe5 {[%clk 0:02:34.4]} 20... cxb5 {[%clk
0:02:29.8]} 21. Bxb5 {[%clk 0:02:30.9]} 21... Qc7 {[%clk 0:02:29.9]} 22. Nb3
{[%clk 0:02:30.3]} 22... Rfc8 {[%clk 0:02:20.8]} 23. Rxa8 {[%clk 0:02:04.8]}
23... Rxa8 {[%clk 0:02:17]} 24. Rd1 {[%clk 0:02:04.8]} 24... Ra2 {[%clk
0:01:52.1]} 25. Rxd5 {[%clk 0:01:53.1]} 25... Rc2 {[%clk 0:01:51.9]} 26. Qd4
{[%clk 0:01:50]} 26... Bf5 {[%clk 0:01:27.3]} 27. Bd3 {[%clk 0:01:45.3]} 27...
Bxd3 {[%clk 0:01:12.3]} 28. Qxd3 {[%clk 0:01:46.2]} 28... Rb2 {[%clk 0:01:08.7]}
29. f4 {[%clk 0:01:31.3]} 29... Qc6 {[%clk 0:01:04.2]} 30. Kh2 {[%clk
0:01:25.4]} 30... Qa4 {[%clk 0:01:01.9]} 31. Nd4 {[%clk 0:01:19.6]} 31... Qa2
{[%clk 0:01:01.8]} 32. Qe4 {[%clk 0:01:18.3]} 32... Qc4 {[%clk 0:00:48.4]} 33.
e6 {[%clk 0:01:12.2]} 33... f5 {[%clk 0:00:41.5]} 34. Rxf5 {[%clk 0:00:53]}
34... Qf1 {[%clk 0:00:31.2]} 35. Rf7 {[%clk 0:00:44.1]} 35... Bh4 {[%clk
0:00:21.2]} 36. Qg6 {[%clk 0:00:34]} 36... Bf6 {[%clk 0:00:06.5]} 37. Rf8+
{[%clk 0:00:33.9]} 1-0

[Event "*** Titled Tuesday Blitz"]
[Site "Chess.com"]
[Date "2021.04.06"]
[Round "4"]
[White "Mihnea2017"]
[Black "Louis64"]
[Result "1-0"]
[WhiteElo "2461"]
[BlackElo "2266"]
[TimeControl "180+1"]
[EndTime "10:39:40 PDT"]
[Termination "Mihnea2017 won by resignation"]

1. e4 {[%clk 0:03:00.9]} 1... c5 {[%clk 0:02:58.9]} 2. Nf3 {[%clk 0:03:01]} 2...
e6 {[%clk 0:02:58.8]} 3. d4 {[%clk 0:03:01.2]} 3... cxd4 {[%clk 0:02:59]} 4.
Nxd4 {[%clk 0:03:02.1]} 4... a6 {[%clk 0:02:59.5]} 5. c4 {[%clk 0:03:01.6]} 5...
Nf6 {[%clk 0:02:59.2]} 6. Nc3 {[%clk 0:03:01.2]} 6... Qc7 {[%clk 0:02:59.4]} 7.
a3 {[%clk 0:03:01.3]} 7... b6 {[%clk 0:02:59]} 8. f3 {[%clk 0:03:01.6]} 8... Bb7
{[%clk 0:02:59.2]} 9. Be3 {[%clk 0:03:01.9]} 9... d6 {[%clk 0:02:59.4]} 10. Qd2
{[%clk 0:03:01.8]} 10... Nbd7 {[%clk 0:02:59.5]} 11. Be2 {[%clk 0:03:02.2]}
11... Be7 {[%clk 0:02:59.7]} 12. O-O {[%clk 0:03:02.2]} 12... Rc8 {[%clk
0:02:59.7]} 13. b4 {[%clk 0:02:59.7]} 13... O-O {[%clk 0:02:59.3]} 14. Rac1
{[%clk 0:02:56.8]} 14... Qb8 {[%clk 0:02:59.2]} 15. Rc2 {[%clk 0:02:52.5]} 15...
Bd8 {[%clk 0:02:59.1]} 16. Kh1 {[%clk 0:02:51.9]} 16... Bc7 {[%clk 0:02:59.4]}
17. Bg1 {[%clk 0:02:52.1]} 17... Rfe8 {[%clk 0:02:59.3]} 18. Na4 {[%clk
0:02:45.2]} 18... h5 {[%clk 0:02:57.9]} 19. Rb1 {[%clk 0:02:31.5]} 19... Qa8
{[%clk 0:02:19.5]} 20. c5 {[%clk 0:02:07]} 20... dxc5 {[%clk 0:02:17.7]} 21.
bxc5 {[%clk 0:02:07.9]} 21... Nxc5 {[%clk 0:02:01.7]} 22. Nxc5 {[%clk
0:02:07.6]} 22... bxc5 {[%clk 0:02:00.7]} 23. Rxc5 {[%clk 0:02:07.5]} 23... Bd6
{[%clk 0:01:25.9]} 24. Ra5 {[%clk 0:01:48.9]} 24... Bc7 {[%clk 0:01:15.8]} 25.
Rg5 {[%clk 0:01:40.3]} 25... Red8 {[%clk 0:00:59.8]} 26. Rxg7+ {[%clk
0:01:35.5]} 26... Kxg7 {[%clk 0:00:59.3]} 27. Qg5+ {[%clk 0:01:35.7]} 27... Kf8
{[%clk 0:00:59.7]} 28. Qxf6 {[%clk 0:01:36.1]} 28... Bd6 {[%clk 0:00:48.6]} 29.
Nxe6+ {[%clk 0:01:35.8]} 29... Ke8 {[%clk 0:00:45.5]} 30. Nxd8 {[%clk 0:01:24]}
30... Rxd8 {[%clk 0:00:45.7]} 31. Rd1 {[%clk 0:01:22.6]} 31... Qb8 {[%clk
0:00:44.6]} 32. Bb6 {[%clk 0:01:20.8]} 32... Be7 {[%clk 0:00:44.1]} 33. Rxd8+
{[%clk 0:01:19.7]} 33... Bxd8 {[%clk 0:00:43.2]} 34. Bxd8 {[%clk 0:01:09.6]}
34... Qxd8 {[%clk 0:00:42.2]} 35. Qxd8+ {[%clk 0:01:09.3]} 35... Kxd8 {[%clk
0:00:42.1]} 36. Kg1 {[%clk 0:01:06.9]} 36... h4 {[%clk 0:00:40.9]} 37. Kf2
{[%clk 0:01:06.7]} 37... a5 {[%clk 0:00:40.3]} 38. g3 {[%clk 0:01:07]} 38...
hxg3+ {[%clk 0:00:39.3]} 39. Kxg3 {[%clk 0:01:07.4]} 39... Ke7 {[%clk
0:00:38.4]} 40. h4 {[%clk 0:01:07.5]} 40... Kf6 {[%clk 0:00:38.6]} 41. Kf4
{[%clk 0:01:08]} 41... Kg6 {[%clk 0:00:37.6]} 42. e5 {[%clk 0:01:03.7]} 42...
Kh5 {[%clk 0:00:35.8]} 43. Kg3 {[%clk 0:01:02.6]} 43... Bd5 {[%clk 0:00:35.3]}
44. f4+ {[%clk 0:01:02.3]} 44... Kg6 {[%clk 0:00:32.9]} 45. Bd3+ {[%clk
0:01:02.5]} 45... Kh5 {[%clk 0:00:32.6]} 46. Bf5 {[%clk 0:00:58.7]} 46... Kh6
{[%clk 0:00:29.5]} 47. Bd7 {[%clk 0:00:52.7]} 47... Bb3 {[%clk 0:00:26.9]} 48.
f5 {[%clk 0:00:49]} 48... Ba2 {[%clk 0:00:23.8]} 49. e6 {[%clk 0:00:45.6]} 49...
fxe6 {[%clk 0:00:24]} 50. fxe6 {[%clk 0:00:46.5]} 1-0

[Event "*** Titled Tuesday Blitz"]
[Site "Chess.com"]
[Date "2021.04.06"]
[Round "4"]
[White "Mazanchenko_Dmitry"]
[Black "Kale36"]
[Result "1-0"]
[WhiteElo "2223"]
[BlackElo "2411"]
[TimeControl "180+1"]
[EndTime "10:39:40 PDT"]
[Termination "Mazanchenko_Dmitry won by resignation"]

1. e4 {[%clk 0:03:00.9]} 1... Nc6 {[%clk 0:02:59.6]} 2. Nc3 {[%clk 0:02:59.6]}
2... d6 {[%clk 0:02:58.1]} 3. d4 {[%clk 0:02:58.4]} 3... g6 {[%clk 0:02:57.8]}
4. Be3 {[%clk 0:02:57.1]} 4... Bg7 {[%clk 0:02:57.9]} 5. f3 {[%clk 0:02:57.3]}
5... Nf6 {[%clk 0:02:53.3]} 6. Qd2 {[%clk 0:02:56.8]} 6... O-O {[%clk
0:02:52.5]} 7. O-O-O {[%clk 0:02:55.1]} 7... e5 {[%clk 0:02:38.5]} 8. Nge2
{[%clk 0:02:53.5]} 8... a6 {[%clk 0:02:35.7]} 9. Bh6 {[%clk 0:02:47.4]} 9...
exd4 {[%clk 0:02:22.7]} 10. Bxg7 {[%clk 0:02:38.8]} 10... dxc3 {[%clk
0:02:16.9]} 11. Qh6 {[%clk 0:02:38]} 11... cxb2+ {[%clk 0:02:06.5]} 12. Kb1
{[%clk 0:02:36.6]} 12... Re8 {[%clk 0:01:51.3]} 13. h4 {[%clk 0:02:31.4]} 13...
Re5 {[%clk 0:01:19.8]} 14. Nf4 {[%clk 0:01:53.4]} 14... Nh5 {[%clk 0:01:07.3]}
15. Bxe5 {[%clk 0:01:50.4]} 15... Nxe5 {[%clk 0:00:58.1]} 16. Nxh5 {[%clk
0:01:49.7]} 16... gxh5 {[%clk 0:00:57.7]} 17. Qxh5 {[%clk 0:01:48]} 17... Qf6
{[%clk 0:00:55.8]} 18. Qg5+ {[%clk 0:01:24.7]} 18... Qxg5 {[%clk 0:00:53.3]} 19.
hxg5 {[%clk 0:01:25.6]} 19... Bd7 {[%clk 0:00:24.8]} 20. Kxb2 {[%clk 0:01:24.4]}
20... Bb5 {[%clk 0:00:22.4]} 21. f4 {[%clk 0:01:16.7]} 21... Bxf1 {[%clk
0:00:21]} 22. Rhxf1 {[%clk 0:01:12.6]} 22... Nc4+ {[%clk 0:00:21]} 23. Kc3
{[%clk 0:01:10.4]} 23... Ne3 {[%clk 0:00:21.6]} 24. f5 {[%clk 0:01:02.2]} 24...
Re8 {[%clk 0:00:20.5]} 25. Kd3 {[%clk 0:00:55.6]} 25... Nxd1 {[%clk 0:00:20.6]}
26. Rxd1 {[%clk 0:00:55.8]} 26... d5 {[%clk 0:00:20.5]} 27. Re1 {[%clk
0:00:51.8]} 27... dxe4+ {[%clk 0:00:19.6]} 28. Rxe4 {[%clk 0:00:52.7]} 28...
Rd8+ {[%clk 0:00:17.5]} 29. Rd4 {[%clk 0:00:48.5]} 29... Rxd4+ {[%clk
0:00:13.8]} 30. Kxd4 {[%clk 0:00:49.4]} 30... h6 {[%clk 0:00:12.9]} 31. gxh6
{[%clk 0:00:44.6]} 31... Kh7 {[%clk 0:00:13]} 32. Ke5 {[%clk 0:00:44.7]} 32...
c5 {[%clk 0:00:10.6]} 33. Kf6 {[%clk 0:00:39.9]} 33... c4 {[%clk 0:00:05.4]} 34.
Kxf7 {[%clk 0:00:38.2]} 34... b5 {[%clk 0:00:06.3]} 35. Ke7 {[%clk 0:00:36.4]}
35... b4 {[%clk 0:00:04.4]} 36. f6 {[%clk 0:00:36.3]} 36... b3 {[%clk
0:00:04.6]} 37. axb3 {[%clk 0:00:35.3]} 1-0

[Event "*** Titled Tuesday Blitz"]
[Site "Chess.com"]
[Date "2021.04.06"]
[Round "4"]
[White "DKmirl"]
[Black "TimKett"]
[Result "0-1"]
[WhiteElo "1945"]
[BlackElo "2244"]
[TimeControl "180+1"]
[EndTime "10:39:40 PDT"]
[Termination "TimKett won on time"]

1. d4 {[%clk 0:03:00.9]} 1... f5 {[%clk 0:02:59]} 2. c4 {[%clk 0:03:01.1]} 2...
Nf6 {[%clk 0:02:58]} 3. Nf3 {[%clk 0:03:00.9]} 3... e6 {[%clk 0:02:58]} 4. g3
{[%clk 0:03:00.2]} 4... Be7 {[%clk 0:02:58.4]} 5. Bg2 {[%clk 0:03:00.3]} 5...
O-O {[%clk 0:02:59]} 6. O-O {[%clk 0:03:00.9]} 6... d6 {[%clk 0:02:59.3]} 7. Nc3
{[%clk 0:03:00.8]} 7... Qe8 {[%clk 0:02:59.8]} 8. Nd2 {[%clk 0:02:47.2]} 8...
Qh5 {[%clk 0:02:37.2]} 9. e4 {[%clk 0:02:43.7]} 9... Qxd1 {[%clk 0:02:35.1]} 10.
Rxd1 {[%clk 0:02:43.3]} 10... fxe4 {[%clk 0:02:33.8]} 11. Ndxe4 {[%clk
0:02:43.5]} 11... Nxe4 {[%clk 0:02:16.2]} 12. Nxe4 {[%clk 0:02:42.4]} 12... d5
{[%clk 0:02:12.3]} 13. cxd5 {[%clk 0:02:28.9]} 13... exd5 {[%clk 0:02:11.6]} 14.
Bg5 {[%clk 0:02:21.9]} 14... Bxg5 {[%clk 0:01:52.9]} 15. Nxg5 {[%clk 0:02:20]}
15... c6 {[%clk 0:01:53.3]} 16. Bh3 {[%clk 0:02:15.3]} 16... Bxh3 {[%clk
0:01:48.5]} 17. Nxh3 {[%clk 0:02:15.8]} 17... Na6 {[%clk 0:01:36.2]} 18. a3
{[%clk 0:02:13.6]} 18... Nc7 {[%clk 0:01:29.9]} 19. Nf4 {[%clk 0:02:10]} 19...
Rae8 {[%clk 0:01:25.5]} 20. Re1 {[%clk 0:02:09.3]} 20... Nb5 {[%clk 0:01:20.3]}
21. Red1 {[%clk 0:01:36.4]} 21... Re4 {[%clk 0:01:15.3]} 22. Rd3 {[%clk
0:01:15.7]} 22... Nxd4 {[%clk 0:01:05.1]} 23. Rad1 {[%clk 0:01:05.7]} 23... Ne2+
{[%clk 0:01:00.7]} 24. Nxe2 {[%clk 0:01:03]} 24... Rxe2 {[%clk 0:01:00.7]} 25.
f4 {[%clk 0:00:54.1]} 25... Rfe8 {[%clk 0:00:49.6]} 26. R1d2 {[%clk 0:00:50.8]}
26... Kf7 {[%clk 0:00:42.6]} 27. h3 {[%clk 0:00:39.5]} 27... R8e3 {[%clk
0:00:36.4]} 28. Rxe3 {[%clk 0:00:24.7]} 28... Rxd2 {[%clk 0:00:33.2]} 29. Rb3
{[%clk 0:00:23.9]} 29... b6 {[%clk 0:00:32.1]} 30. Re3 {[%clk 0:00:19.4]} 30...
c5 {[%clk 0:00:26.7]} 31. b4 {[%clk 0:00:11]} 31... d4 {[%clk 0:00:24.8]} 32.
Rf3 {[%clk 0:00:03.7]} 32... c4 {[%clk 0:00:24.6]} 0-1